fUSD/lending_fUSD_20260201
["ID","MTS","AMOUNT","RATE_DAILY","PERIOD"]
[404184873,1769911832546,-151.0,0.00014945,2]
[404184875,1769911832557,-155.334,0.00014947,2]
[404184877,1769911832565,-500.0,0.00014948,2]
[404184879,1769911832574,-359.69496302,0.00014948,2]
[404184880,1769911832583,-500.0,0.00014948,2]
[404184882,1769911832592,-500.0,0.00014948,2]
[404184883,1769911832601,-500.0,0.00014948,2]
[404184885,1769911832610,-387.95645218,0.00014948,2]
[404184887,1769911832619,-500.0,0.00014948,2]
[404184889,1769911832628,-500.0,0.00014948,2]
[404184891,1769911832637,-500.0,0.00014948,2]
[404184893,1769911832646,-500.0,0.00014948,2]
[404184895,1769911832655,-500.0,0.00014948,2]
[404184897,1769911832665,-500.0,0.00014948,2]
[404184899,1769911832674,-506.81861184,0.00014948,2]
[404184902,1769911832685,-500.0,0.00014948,2]
[404184903,1769911832700,-500.0,0.00014948,2]
[404184904,1769911832709,-500.0,0.00014948,2]
[404184905,1769911832719,-500.0,0.00014948,2]
[404184906,1769911832732,-242.83669265,0.00014948,2]
[404184907,1769911832742,-500.0,0.00014948,2]
[404184908,1769911832751,-500.0,0.00014948,2]
[404184909,1769911832763,-500.0,0.00014948,2]
[404184910,1769911832772,-500.0,0.00014948,2]
[404184911,1769911832787,-500.0,0.00014948,2]
[404184912,1769911832796,-500.0,0.00014948,2]
[404184913,1769911832806,-500.0,0.00014948,2]
[404184914,1769911832815,-500.0,0.00014948,2]
[404184915,1769911832824,-500.0,0.00014948,2]
[404184916,1769911832835,-468.33033148,0.00014948,2]
[404184917,1769911832844,-746.14,0.00014949,2]
[404184918,1769911832853,-250.0,0.00015,2]
[404184919,1769911832863,-160.53,0.00015,2]
[404184920,1769911832872,-961.41,0.00015004,2]
[404184921,1769911832884,-192.58,0.00015045,2]
[404184922,1769911832893,-506.01810728,0.00015048,2]
[404184923,1769911832903,-500.0,0.00015048,2]
[404184924,1769911832913,-500.0,0.00015048,2]
[404184925,1769911832923,-537.05601401,0.00015048,2]
[404184926,1769911832934,-500.0,0.00015048,2]
[404184927,1769911832945,-500.0,0.00015048,2]
[404184928,1769911832954,-500.0,0.00015048,2]
[404184929,1769911832973,-500.0,0.00015048,2]
[404184930,1769911832984,-537.60469768,0.00015048,2]
[404184931,1769911832994,-500.0,0.00015048,2]
[404184932,1769911833003,-500.0,0.00015048,2]
[404184933,1769911833014,-1000.0,0.00015049,2]
[404184934,1769911833023,-1000.0,0.00015049,2]
[404184935,1769911833037,-1000.0,0.00015049,2]
[404184936,1769911833047,-1000.0,0.00015049,2]
[404184937,1769911833056,-1000.0,0.00015049,2]
[404184938,1769911833067,-151.0,0.00015049,2]
[404184939,1769911833076,-1000.0,0.00015049,2]
[404184940,1769911833086,-1000.0,0.00015049,2]
[404184941,1769911833095,-1000.0,0.00015049,2]
[404184942,1769911833105,-151.0,0.00015049,2]
[404184943,1769911833115,-151.0,0.00015049,2]
[404184944,1769911833124,-151.0,0.00015049,2]
[404184945,1769911833134,-151.0,0.00015049,2]
[404184946,1769911833144,-151.0,0.00015049,2]
[404184947,1769911833154,-151.0,0.00015049,2]
[404184948,1769911833164,-151.0,0.00015049,2]
[404184949,1769911833174,-183.70234,0.00015049,2]
[404184950,1769911833183,-151.0,0.00015049,2]
[404184951,1769911833192,-151.0,0.00015049,2]
[404184952,1769911833202,-151.0,0.00015049,2]
[404184953,1769911833211,-2000.0,0.00015049,2]
[404184954,1769911833220,-2000.0,0.00015049,2]
[404184955,1769911833230,-2000.0,0.00015049,2]
[404184956,1769911833239,-1934.234,0.00015049,2]
[404184957,1769911833249,-157.418958,0.00015049,2]
[404184958,1769911833258,-1000.0,0.00015049,2]
[404184959,1769911833268,-176.551,0.00015049,2]
[404184960,1769911833282,-2000.0,0.00015049,2]
[404184961,1769911833291,-2000.0,0.00015049,2]
[404184962,1769911833300,-2000.0,0.00015049,2]
[404184963,1769911833309,-2000.0,0.00015049,2]
[404184964,1769911833319,-2000.0,0.00015049,2]
[404184965,1769911833328,-987.967,0.00015049,2]
[404184966,1769911833338,-171.32839907,0.00015049,2]
[404184967,1769911833348,-273.2,0.00015066,2]
[404184968,1769911833358,-393.468493,0.00015068,2]
[404184969,1769911833368,-393.468493,0.00015068,2]
[404184970,1769911833378,-393.468493,0.00015068,2]
[404184971,1769911833388,-393.468493,0.00015068,2]
[404184972,1769911833397,-300.0,0.00015078,2]
[404184973,1769911833407,-250.0,0.00015078,2]
[404184974,1769911833417,-195.0,0.00015078,2]
[404184975,1769911833427,-4382.03216611,0.00015078,2]
[404184976,1769911833436,-172.45,0.000151,2]
[404184977,1769911833445,-172.45,0.000152,2]
[404184978,1769911833455,-172.45,0.000152,2]
[404184979,1769911833465,-172.45,0.00015209,2]
[404184980,1769911833475,-180.21,0.00015209,2]
[404184981,1769911833485,-360.37,0.00015209,2]
[404184982,1769911833494,-469.32,0.00015209,2]
[404184983,1769911833504,-469.32,0.00015209,2]
[404184984,1769911833514,-465.29,0.00015209,2]
[404184985,1769911833527,-3230.7034036,0.00015248,2]
[404184986,1769911833545,-512.58375478,0.00015248,2]
[404184987,1769911833555,-66.14013562,0.00015271,2]
[404184988,1769911833569,-100.51986438,0.00015271,2]
[404184989,1769911833579,-961.41,0.00015278,2]
[404184990,1769911833588,-164.09,0.00015301,2]
[404184991,1769911833597,-670.28708967,0.00015305,2]
[404184992,1769911833609,-865.07238644,0.00015305,2]
[404184993,1769911833623,-4261.8712743,0.00015305,2]
[404184994,1769911833651,-123.64301094,0.00015305,2]
[404184995,1769911833660,-500.0,0.00015313,2]
[404184996,1769911833670,-200.0,0.00015315,2]
[404184997,1769911833680,-200.0,0.00015315,3]
[404184998,1769911833689,-1032.60698906,0.00015315,2]
[404184999,1769911833702,-545.0,0.00015315,2]
[404185000,1769911833717,-714.32801094,0.00015315,2]
[404185001,1769911833727,-172.06,0.00015315,2]
[404185002,1769911833737,-190.38,0.00015348,2]
[404185003,1769911833746,-515.89023,0.0001535,2]
[404185004,1769911833756,-515.89023,0.0001535,2]
[404185005,1769911833765,-515.89023,0.0001535,2]
[404185006,1769911833779,-515.89023,0.0001535,2]
[404185007,1769911833790,-515.89024,0.0001535,2]
[404185008,1769911833800,-515.89024,0.0001535,2]
[404185009,1769911833809,-150.02,0.000154,2]
[404185010,1769911833819,-1000.0,0.00015439,2]
[404185011,1769911833828,-137.28836917,0.00015497,2]
[404185012,1769911833840,-13.71163083,0.00015497,2]
[404185013,1769911833850,-151.0,0.00015514,2]
[404185014,1769911833860,-171.32839907,0.00015524,2]
[404185015,1769911833870,-151.0,0.00015527,2]
[404185016,1769911833881,-961.41,0.00015552,2]
[404185017,1769911833892,-151.0,0.00015555,2]
[404185018,1769911833902,-393.0,0.00015561,2]
[404185019,1769911833911,-500.0,0.00015651,2]
[404185020,1769911833922,-500.0,0.00015651,2]
[404185021,1769911833932,-500.0,0.00015651,2]
[404185022,1769911833942,-500.0,0.00015651,2]
[404185023,1769911833951,-508.8023007,0.00015651,2]
[404185024,1769911833961,-500.0,0.00015651,2]
[404185025,1769911833970,-226.73228157,0.00015651,2]
[404185026,1769911833980,-5521.45295399,0.00015651,2]
[404185027,1769911838307,-156.23,0.00015527,2]
[404185028,1769911838317,-14331.54177148,0.00015651,2]
[404185029,1769911838360,-2253.09560657,0.00015651,2]
[404185030,1769911838371,-8150.2,0.00015651,2]
[404185031,1769911838383,-435.54068755,0.00015651,2]
[404185032,1769911838394,-1275.45185084,0.00015651,2]
[404185033,1769911838467,-23007.52609329,0.00015651,2]
[404185034,1769911838477,-393.468493,0.00015652,2]
[404185035,1769911838486,-297.77791165,0.00015652,2]
[404185036,1769911838573,-95.69058135,0.00015652,2]
[404185037,1769911838583,-393.468493,0.00015652,2]
[404185038,1769911838592,-393.468493,0.00015652,2]
[404185039,1769911838602,-746.14,0.00015661,2]
[404185040,1769911838611,-151.0,0.00015675,2]
[404185041,1769911838620,-151.0,0.00015675,2]
[404185043,1769911838630,-464.076053,0.00015675,2]
[404185044,1769911838639,-464.076053,0.00015675,2]
[404185045,1769911838648,-319.989397,0.00015675,2]
[404185046,1769911838658,-464.076053,0.00015675,2]
[404185047,1769911838667,-319.989397,0.00015675,2]
[404185048,1769911838676,-464.076053,0.00015675,2]
[404185050,1769911838686,-319.989397,0.00015675,2]
[404185052,1769911838696,-319.989397,0.00015675,2]
[404185054,1769911838705,-151.0,0.00015675,2]
[404185055,1769911838716,-151.0,0.00015675,2]
[404185056,1769911838729,-5920.87376135,0.00015675,2]
[404185057,1769911838739,-151.0,0.00015683,2]
[404185058,1769911838749,-151.0,0.00015683,2]
[404185059,1769911838760,-151.0,0.00015683,2]
[404185060,1769911838769,-151.0,0.00015683,2]
[404185061,1769911838780,-151.0,0.00015683,2]
[404185062,1769911838789,-151.0,0.00015683,2]
[404185063,1769911838801,-151.0,0.00015683,2]
[404185064,1769911838811,-151.0,0.000157,2]
[404185065,1769911838820,-151.0,0.000157,2]
[404185066,1769911838829,-170.089485,0.000157,2]
[404185067,1769911838838,-393.0,0.00015717,2]
[404185068,1769911838848,-255.0,0.00015791,2]
[404185069,1769911838860,-1500.0,0.000158,2]
[404185070,1769911838869,-961.41,0.00015826,2]
[404185071,1769911838879,-5100.0,0.000159,5]
[404185072,1769911838889,-936.64,0.00015918,2]
[404185073,1769911838898,-273.0,0.00015965,2]
[404185074,1769911838908,-273.0,0.00015976,2]
[404185075,1769911838917,-151.89,0.00015988,2]
[404185076,1769911838927,-171.32839907,0.00015999,2]
[404185077,1769911838936,-13192.24922807,0.00016,4]
[404185078,1769911838946,-151.0,0.00016,2]
[404185079,1769911838955,-168.0,0.00016004,2]
[404185080,1769911838965,-273.0,0.00016015,2]
[404185081,1769911838975,-250.0,0.00016022,2]
[404185082,1769911838984,-5920.87376135,0.00016046,2]
[404185083,1769911838993,-393.0,0.00016057,2]
[404185084,1769911839003,-273.0,0.00016065,2]
[404185085,1769911839012,-273.0,0.00016066,2]
[404185086,1769911839021,-273.0,0.00016071,2]
[404185087,1769911839031,-961.41,0.000161,2]
[404185088,1769911839040,-600.0,0.00016128,2]
[404185089,1769911839049,-253.55550978,0.00016129,2]
[404185090,1769911839058,-195.0,0.00016141,2]
[404185091,1769911839067,-300.0,0.00016141,2]
[404185092,1769911839077,-1680.0,0.00016141,2]
[404185093,1769911839086,-1188.74,0.00016142,2]
[404185094,1769911839095,-273.0,0.00016148,2]
[404185095,1769911839104,-4188.96459668,0.0001618,2]
[404185096,1769911839114,-273.0,0.0001619,2]
[404185097,1769911839124,-166.88,0.00016225,2]
[404185098,1769911839133,-500.0,0.00016247,2]
[404185099,1769911839143,-9878.59403555,0.00016248,2]
[404185100,1769911839152,-17427.01082586,0.00016248,2]
[404185101,1769911839161,-26069.76595443,0.00016248,2]
[404185102,1769911839170,-35273.3139,0.00016248,2]
[404185103,1769911839179,-151.0,0.00016248,2]
[404185104,1769911839189,-151.0,0.00016248,2]
[404185105,1769911839198,-151.0,0.00016248,2]
[404185106,1769911839207,-151.0,0.00016248,2]
[404185107,1769911839217,-151.0,0.00016248,2]
[404185108,1769911839226,-151.0,0.00016248,2]
[404185109,1769911839235,-151.0,0.00016248,2]
[404185110,1769911839244,-151.0,0.00016248,2]
[404185111,1769911839254,-393.468493,0.00016248,2]
[404185112,1769911839263,-393.468493,0.00016248,2]
[404185113,1769911839273,-393.468493,0.00016248,2]
[404185114,1769911839284,-393.468493,0.00016248,2]
[404185115,1769911839295,-151.0,0.00016248,2]
[404185116,1769911839306,-464.076053,0.00016248,2]
[404185117,1769911839317,-464.076053,0.00016248,2]
[404185118,1769911839326,-319.989397,0.00016248,2]
[404185119,1769911839336,-464.076053,0.00016248,2]
[404185120,1769911839346,-319.989397,0.00016248,2]
[404185121,1769911839355,-464.076053,0.00016248,2]
[404185122,1769911839365,-319.989397,0.00016248,2]
[404185123,1769911839375,-319.989397,0.00016248,2]
[404185124,1769911839384,-151.0,0.00016248,2]
[404185125,1769911839394,-151.0,0.00016248,2]
[404185126,1769911839403,-5694.0,0.00016285,2]
[404185127,1769911839413,-4865.92885954,0.00016335,2]
[404185129,1769911839422,-4451.82049627,0.00016372,2]
[404185130,1769911839438,-105.17950373,0.00016372,2]
[404185131,1769911839448,-500.0,0.00016373,2]
[404185132,1769911839457,-500.0,0.00016373,2]
[404185134,1769911839466,-195.43817297,0.00016373,2]
[404185135,1769911839477,-414.01050947,0.00016373,2]
[404185136,1769911839486,-500.0,0.00016373,2]
[404185137,1769911839495,-502.61786166,0.00016373,2]
[404185139,1769911839504,-501.9598504,0.00016373,2]
[404185140,1769911839513,-500.0,0.00016373,2]
[404185141,1769911839523,-500.0,0.00016373,2]
[404185142,1769911839534,-503.23277324,0.00016373,2]
[404185144,1769911839543,-500.0,0.00016373,2]
[404185145,1769911839552,-500.0,0.00016373,2]
[404185146,1769911839562,-500.0,0.00016373,2]
[404185147,1769911839571,-504.63538897,0.00016373,2]
[404185148,1769911839580,-746.14,0.00016373,2]
[404185149,1769911839589,-961.41,0.00016374,2]
[404185150,1769911839598,-273.0,0.00016395,2]
[404185151,1769911839607,-7264.84500823,0.00016417,2]
[404185156,1769911840363,-449.495,0.00016417,2]
[404185212,1769911843133,-2256.16405107,0.00016417,2]
[404185213,1769911843146,-5920.87376135,0.00016417,2]
[404185214,1769911843159,-151.0,0.00016417,2]
[404185215,1769911843170,-151.0,0.00016434,2]
[404185216,1769911843180,-1245.88502937,0.00016434,2]
[404185217,1769911843189,-500.0,0.00016438,2]
[404185218,1769911843199,-500.0,0.00016438,2]
[404185219,1769911843209,-500.0,0.00016438,2]
[404185220,1769911843218,-500.0,0.00016438,2]
[404185221,1769911843228,-500.0,0.00016438,2]
[404185222,1769911843238,-500.0,0.00016438,2]
[404185223,1769911843247,-500.0,0.00016438,2]
[404185224,1769911843257,-500.0,0.00016438,2]
[404185225,1769911843267,-500.0,0.00016438,2]
[404185226,1769911843277,-500.0,0.00016438,2]
[404185227,1769911843287,-500.0,0.00016438,2]
[404185228,1769911843296,-500.0,0.00016438,2]
[404185229,1769911843306,-500.0,0.00016438,2]
[404185230,1769911843316,-500.0,0.00016438,2]
[404185231,1769911843326,-500.0,0.00016438,2]
[404185232,1769911843335,-500.0,0.00016438,2]
[404185233,1769911843345,-500.0,0.00016438,2]
[404185234,1769911843354,-500.0,0.00016438,2]
[404185235,1769911843363,-500.0,0.00016438,2]
[404185236,1769911843373,-500.0,0.00016438,2]
[404185237,1769911843382,-441.94019358,0.00016438,2]
[404185238,1769911843392,-500.0,0.00016438,2]
[404185239,1769911843401,-500.0,0.00016438,2]
[404185240,1769911843411,-500.0,0.00016438,2]
[404185241,1769911843420,-500.0,0.00016438,2]
[404185242,1769911843429,-500.0,0.00016438,2]
[404185243,1769911843438,-500.0,0.00016438,2]
[404185244,1769911843619,-500.0,0.00016438,2]
[404185245,1769911843630,-500.0,0.00016438,2]
[404185246,1769911843640,-500.0,0.00016438,2]
[404185247,1769911843650,-563.23539374,0.00016438,2]
[404185248,1769911843660,-558.33769466,0.00016438,2]
[404185249,1769911843671,-558.33769466,0.00016438,2]
[404185250,1769911843682,-151.0,0.00016438,2]
[404185251,1769911843692,-151.0,0.00016438,2]
[404185252,1769911843703,-151.0,0.00016438,2]
[404185253,1769911843713,-151.0,0.00016438,2]
[404185254,1769911843724,-151.0,0.00016438,2]
[404185255,1769911843736,-277.854517,0.00016438,2]
[404185256,1769911843746,-151.0,0.00016438,2]
[404185257,1769911843755,-151.0,0.00016438,2]
[404185258,1769911843766,-151.0,0.00016438,2]
[404185259,1769911843775,-151.0,0.00016438,2]
[404185260,1769911843786,-151.0,0.00016438,2]
[404185261,1769911843796,-151.0,0.00016438,2]
[404185262,1769911843805,-801.64560442,0.00016438,2]
[404185263,1769911843814,-386.155583,0.00016438,2]
[404185264,1769911843824,-386.155583,0.00016438,2]
[404185265,1769911843833,-386.155583,0.00016438,2]
[404185266,1769911843843,-386.155583,0.00016438,2]
[404185267,1769911843854,-386.155583,0.00016438,2]
[404185268,1769911843865,-386.155583,0.00016438,2]
[404185269,1769911843876,-386.155583,0.00016438,2]
[404185270,1769911843886,-386.155583,0.00016438,2]
[404185271,1769911843895,-1000.0,0.00016438,2]
[404185272,1769911843905,-155.0,0.00016442,2]
[404185273,1769911843915,-273.0,0.00016444,2]
[404185274,1769911843925,-151.0,0.00016444,2]
[404185275,1769911843935,-5694.0,0.00016473,2]
[404185276,1769911843945,-171.32839907,0.00016475,2]
[404185277,1769911843954,-3737.6550881,0.00016508,2]
[404185279,1769911843965,-936.64,0.00016515,2]
[404185280,1769911843975,-393.468493,0.00016586,2]
[404185281,1769911843984,-393.468493,0.00016586,2]
[404185282,1769911843994,-393.468493,0.00016586,2]
[404185283,1769911844005,-393.468493,0.00016586,2]
[404185284,1769911844014,-5694.0,0.0001659,2]
[404185285,1769911844024,-151.0,0.00016615,2]
[404185286,1769911844034,-151.0,0.00016615,2]
[404185287,1769911844043,-151.0,0.00016615,2]
[404185288,1769911844053,-151.0,0.00016615,2]
[404185289,1769911844062,-151.0,0.00016615,2]
[404185290,1769911844071,-5694.0,0.00016615,2]
[404185291,1769911844081,-573.187,0.00016635,2]
[404185292,1769911844090,-6577.0,0.00016635,2]
[404185293,1769911844100,-1209.917,0.00016635,2]
[404185294,1769911844109,-5694.0,0.00016636,2]
[404185295,1769911844118,-961.41,0.00016648,2]
[404185296,1769911844127,-164.09,0.00016692,2]
[404185297,1769911844137,-1000.0,0.00016712,2]
[404185298,1769911844146,-165.34,0.00016712,2]
[404185299,1769911844157,-168.0,0.00016759,2]
[404185300,1769911844166,-9970.5040593,0.00016788,2]
[404185301,1769911844176,-5920.87376135,0.00016788,2]
[404185302,1769911844187,-2716.0,0.00016816,2]
[404185303,1769911844196,-508.3423792,0.00016863,2]
[404185304,1769911844205,-500.0,0.00016863,2]
[404185305,1769911844215,-500.0,0.00016863,2]
[404185306,1769911844225,-517.19350435,0.00016863,2]
[404185307,1769911844235,-500.0,0.00016863,2]
[404185308,1769911844245,-158.95836824,0.000169,2]
[404185309,1769911844256,-151.0,0.00016909,2]
[404185310,1769911844265,-464.076053,0.00016909,2]
[404185311,1769911844275,-464.076053,0.00016909,2]
[404185312,1769911844285,-319.989397,0.00016909,2]
[404185313,1769911844295,-464.076053,0.00016909,2]
[404185314,1769911844305,-319.989397,0.00016909,2]
[404185315,1769911844314,-464.076053,0.00016909,2]
[404185316,1769911844323,-319.989397,0.00016909,2]
[404185317,1769911844333,-319.989397,0.00016909,2]
[404185318,1769911844343,-151.0,0.00016909,2]
[404185319,1769911844352,-151.0,0.00016909,2]
[404185320,1769911844361,-5694.0,0.00016909,2]
[404185321,1769911844371,-1000.0,0.00016921,2]
[404185322,1769911844380,-1000.0,0.00016921,2]
[404185323,1769911844389,-873.04412822,0.00016921,2]
[404185324,1769911844398,-1000.0,0.00016921,2]
[404185325,1769911844407,-502.10787184,0.00016921,2]
[404185326,1769911844417,-1000.0,0.00016921,2]
[404185327,1769911844426,-1000.0,0.00016921,2]
[404185328,1769911844437,-1000.0,0.00016921,2]
[404185329,1769911844447,-151.0,0.00016921,2]
[404185330,1769911844456,-151.0,0.00016921,2]
[404185331,1769911844466,-151.0,0.00016921,2]
[404185332,1769911844475,-961.41,0.00016922,2]
[404185333,1769911844484,-151.0,0.00016947,2]
[404185334,1769911844493,-151.0,0.00016947,2]
[404185335,1769911844502,-171.32839907,0.0001695,2]
[404185336,1769911844511,-296.0,0.00016957,2]
[404185337,1769911844521,-618.059,0.00016964,2]
[404185338,1769911844530,-1338.801,0.00016964,2]
[404185339,1769911844540,-1410.0,0.00016964,2]
[404185340,1769911844549,-219.134949,0.00016964,2]
[404185341,1769911844558,-275.41,0.0001698,2]
[404185342,1769911844568,-1000.0,0.00016986,2]
[404185343,1769911844577,-300.0,0.00016999,2]
[404185344,1769911844586,-500.0,0.00016999,2]
[404185345,1769911844595,-670.5922888,0.00016999,2]
[404185346,1769911844604,-162220.97233294,0.00017,2]
[404185347,1769911844613,-300.0,0.00017,2]
[404185348,1769911844623,-157.304005,0.00017,2]
[404185349,1769911844632,-151.0,0.00017,2]
[404185350,1769911844643,-151.0,0.00017,2]
[404185351,1769911844652,-151.0,0.00017,2]
[404185352,1769911844661,-151.0,0.00017,2]
[404185353,1769911844671,-393.468493,0.00017,2]
[404185354,1769911844680,-393.468493,0.00017,2]
[404185355,1769911844689,-393.468493,0.00017,2]
[404185356,1769911844699,-393.4685,0.00017,2]
[404185357,1769911844709,-151.0,0.00017,2]
[404185358,1769911844719,-464.076053,0.00017,2]
[404185359,1769911844732,-464.076053,0.00017,2]
[404185360,1769911844741,-319.989397,0.00017,2]
[404185361,1769911844751,-464.076053,0.00017,2]
[404185362,1769911844762,-319.989397,0.00017,2]
[404185363,1769911844774,-464.076053,0.00017,2]
[404185364,1769911844784,-319.989397,0.00017,2]
[404185365,1769911844794,-386.155583,0.00017,2]
[404185366,1769911844804,-319.989397,0.00017,2]
[404185367,1769911844814,-151.0,0.00017,2]
[404185368,1769911844825,-386.155583,0.00017,2]
[404185369,1769911844834,-246.520924,0.00017,2]
[404185370,1769911844844,-151.0,0.00017,2]
[404185371,1769911844855,-386.155583,0.00017,2]
[404185372,1769911844865,-386.155583,0.00017,2]
[404185373,1769911844875,-242.0,0.00017008,2]
[404185374,1769911844884,-838.0,0.0001704,2]
[404185375,1769911844895,-838.0,0.0001704,2]
[404185376,1769911844905,-2716.0,0.00017043,2]
[404185377,1769911844915,-746.14,0.00017085,2]
[404185378,1769911844924,-936.64,0.00017112,2]
[404185379,1769911844935,-1000.0,0.00017154,2]
[404185380,1769911844946,-9970.5040593,0.00017158,2]
[404185381,1769911844957,-5920.87376135,0.00017158,2]
[404185382,1769911844967,-961.41,0.00017196,2]
[404185383,1769911844977,-1704.0,0.000172,2]
[404185384,1769911844988,-183.69,0.00017205,2]
[404185385,1769911844997,-269.452284,0.0001726,2]
[404185386,1769911845007,-269.452284,0.0001726,2]
[404185387,1769911845016,-269.452284,0.0001726,2]
[404185388,1769911845026,-269.452284,0.0001726,2]
[404185389,1769911845035,-269.452284,0.0001726,2]
[404185390,1769911845044,-269.452284,0.0001726,2]
[404185391,1769911845054,-269.452284,0.0001726,2]
[404185392,1769911845063,-269.452284,0.0001726,2]
[404185393,1769911845072,-269.452284,0.0001726,2]
[404185394,1769911845081,-269.452284,0.0001726,2]
[404185395,1769911845091,-269.452284,0.0001726,2]
[404185396,1769911845100,-269.452284,0.0001726,2]
[404185397,1769911845108,-269.452284,0.0001726,2]
[404185399,1769911845117,-269.452284,0.0001726,2]
[404185401,1769911845127,-269.452284,0.0001726,2]
[404185403,1769911845135,-269.452284,0.0001726,2]
[404185405,1769911845144,-269.452284,0.0001726,2]
[404185407,1769911845153,-269.452284,0.0001726,2]
[404185409,1769911845162,-269.452284,0.0001726,2]
[404185411,1769911845172,-269.452282,0.0001726,2]
[404185412,1769911845181,-1000.0,0.0001726,2]
[404185414,1769911845190,-192.58,0.00017336,2]
[404185416,1769911845199,-838.0,0.0001736,2]
[404185418,1769911845208,-171.32839907,0.00017425,2]
[404185420,1769911845217,-166.88,0.00017462,2]
[404185422,1769911845226,-1500.0,0.00017468,2]
[404185423,1769911845235,-1500.0,0.00017468,2]
[404185424,1769911845245,-1500.0,0.00017468,2]
[404185425,1769911845255,-1113.64404102,0.00017468,2]
[404185426,1769911845264,-1500.0,0.00017468,2]
[404185427,1769911845274,-1500.0,0.00017468,2]
[404185428,1769911845284,-961.4906214,0.0001747,2]
[404185429,1769911845293,-500.0,0.00017499,2]
[404185430,1769911845303,-500.0,0.00017499,2]
[404185431,1769911845312,-439.31904025,0.00017499,2]
[404185432,1769911845321,-7700.0,0.000175,6]
[404185433,1769911845331,-9970.5040593,0.00017529,2]
[404185434,1769911845340,-5920.87376135,0.00017529,2]
[404185435,1769911845350,-1000.0,0.00017534,2]
[404185436,1769911845359,-1661.95603094,0.0001755,2]
[404185437,1769911845369,-10200.0,0.000176,6]
[404185438,1769911845379,-168.0,0.00017613,2]
[404185439,1769911845388,-850.0,0.0001768,2]
[404185440,1769911845397,-821.0,0.0001768,2]
[404185441,1769911845407,-2871.0,0.0001768,2]
[404185442,1769911845416,-12800.0,0.000177,6]
[404185443,1769911845426,-936.64,0.00017709,2]
[404185444,1769911845436,-2500.0,0.000178,6]
[404185445,1769911845445,-500.0,0.00017808,2]
[404185446,1769911845457,-1000.0,0.00017808,2]
[404185447,1769911845467,-500.0,0.00017863,2]
[404185448,1769911845477,-163.86461704,0.000179,3]
[404185449,1769911845486,-9970.5040593,0.000179,2]
[404185450,1769911845497,-5920.87376135,0.000179,2]
[404185451,1769911845507,-2500.0,0.000179,6]
[404185452,1769911845517,-175.582062,0.000179,2]
[404185453,1769911845529,-464.076053,0.000179,2]
[404185454,1769911845540,-85.03338746,0.000179,2]
[404185455,1769911845554,-379.04266554,0.000179,2]
[404185456,1769911845563,-319.989397,0.000179,2]
[404185457,1769911845572,-464.076053,0.000179,2]
[404185458,1769911845582,-319.989397,0.000179,2]
[404185459,1769911845593,-464.076044,0.000179,2]
[404185460,1769911845604,-171.32839907,0.000179,2]
[404185461,1769911845614,-319.989397,0.000179,2]
[404185462,1769911845623,-319.989405,0.000179,2]
[404185463,1769911845633,-151.0,0.000179,2]
[404185464,1769911845644,-12405.89043318,0.000179,2]
[404185465,1769911845653,-217.32885028,0.000179,2]
[404185466,1769911845662,-500.0,0.00017918,2]